fUSD/lending_fUSD_20260413
["ID","MTS","AMOUNT","RATE_DAILY","PERIOD"]
[420416936,1776089435092,-895.86861586,0.0001589,2]
[420416937,1776089435122,-1165.17525135,0.0001589,2]
[420416938,1776089435132,-6117.75,0.0001589,2]
[420416939,1776089435142,-151.0,0.00015897,2]
[420416940,1776089435160,-300.0,0.00015898,2]
[420416941,1776089435172,-1200.0,0.00015898,2]
[420416942,1776089435184,-300.0,0.00015898,2]
[420416943,1776089435222,-1200.0,0.00015898,2]
[420416944,1776089435235,-500.0,0.00015899,2]
[420416945,1776089435255,-238.13874721,0.00015899,2]
[420416946,1776089435282,-500.0,0.00015899,2]
[420416947,1776089435300,-304.88275456,0.00015899,2]
[420416948,1776089435324,-500.0,0.00015899,2]
[420416949,1776089435334,-204.18485488,0.00015899,2]
[420416950,1776089435360,-520.68619135,0.00015899,2]
[420416951,1776089435375,-500.0,0.00015899,2]
[420416952,1776089435408,-500.0,0.00015899,2]
[420416953,1776089435419,-500.0,0.00015899,2]
[420416954,1776089435436,-482.32417656,0.00015899,2]
[420416955,1776089435452,-329.48783953,0.00015899,2]
[420416956,1776089435461,-500.0,0.00015899,2]
[420416957,1776089435477,-500.0,0.00015899,2]
[420416958,1776089435489,-500.0,0.00015899,2]
[420416959,1776089435500,-500.0,0.00015899,2]
[420416960,1776089435513,-500.0,0.00015899,2]
[420416961,1776089435523,-500.0,0.00015899,2]
[420416962,1776089435536,-500.0,0.00015899,2]
[420416963,1776089435545,-500.0,0.00015899,2]
[420416964,1776089435555,-500.0,0.00015899,2]
[420416965,1776089435564,-500.0,0.00015899,2]
[420416966,1776089435574,-500.0,0.00015899,2]
[420416967,1776089435583,-500.0,0.00015899,2]
[420416968,1776089435595,-500.0,0.00015899,2]
[420416969,1776089435605,-450.0,0.00015899,2]
[420416970,1776089435614,-150.0,0.00015899,2]
[420416971,1776089435624,-192898.37580545,0.000159,2]
[420416972,1776089435638,-7157.72682138,0.000159,2]
[420416973,1776089435668,-296.369996,0.000159,2]
[420416974,1776089437669,3278.77,0.00015076,2]
[420416991,1776089438568,-13473.12590922,0.000159,2]
[420417001,1776089438779,-4897.49151961,0.000159,2]
[420417003,1776089438828,-610582.6014452,0.000159,2]
[420417005,1776089438845,-1403.63858315,0.000159,2]
[420417008,1776089438863,-953.62274499,0.000159,2]
[420417009,1776089438879,-1539.67873181,0.000159,2]
[420417010,1776089438894,-1068.10588701,0.000159,2]
[420417121,1776089440769,-2200.0,0.000159,2]
[420417123,1776089440784,-409581.29880647,0.000159,2]
[420417125,1776089440807,-800.0,0.000159,5]
[420417127,1776089440818,-502.3719,0.000159,2]
[420417129,1776089440848,-166.66,0.00015901,2]
[420417131,1776089440858,-2438.4,0.00015901,2]
[420417133,1776089440872,-2615.90987453,0.00015902,2]
[420417135,1776089440890,-1106.01580885,0.00015903,2]
[420417137,1776089440900,-164.68,0.00015936,2]
[420417139,1776089440913,-1437.38648523,0.00015937,2]
[420417142,1776089440932,-1339.32057428,0.00015956,2]
[420417143,1776089440941,-182.13860333,0.00015956,2]
[420417145,1776089440958,-183.71046201,0.00015956,2]
[420417148,1776089440973,-4775.0,0.00015973,2]
[420417150,1776089440983,-500.0,0.00015973,2]
[420417151,1776089440997,-500.0,0.00015973,2]
[420417153,1776089441022,-500.0,0.00015973,2]
[420417155,1776089441031,-502.28353177,0.00015973,2]
[420417157,1776089441048,-160.00104828,0.00015973,2]
[420417159,1776089441067,-500.0,0.00015973,2]
[420417161,1776089441101,-500.0,0.00015973,2]
[420417163,1776089441112,-500.0,0.00015973,2]
[420417165,1776089441137,-500.0,0.00015973,2]
[420417167,1776089441149,-500.0,0.0001599,2]
[420417169,1776089441185,-200.0,0.0001599,2]
[420417171,1776089441195,-500.0,0.0001599,2]
[420417173,1776089441227,-500.0,0.0001599,2]
[420417175,1776089441237,-500.0,0.0001599,2]
[420417177,1776089441253,-500.0,0.0001599,2]
[420417179,1776089441269,-500.0,0.0001599,2]
[420417181,1776089441280,-243.79747382,0.0001599,2]
[420417183,1776089441291,-500.0,0.0001599,2]
[420417185,1776089441317,-151.0,0.0001599,2]
[420417187,1776089441326,-151.0,0.0001599,2]
[420417189,1776089441337,-151.0,0.0001599,2]
[420417191,1776089441348,-151.0,0.0001599,2]
[420417192,1776089441368,-151.0,0.0001599,2]
[420417194,1776089441386,-151.0,0.0001599,2]
[420417197,1776089441401,-151.0,0.0001599,2]
[420417198,1776089441411,-151.0,0.0001599,2]
[420417201,1776089441424,-151.0,0.0001599,2]
[420417202,1776089441434,-500.0,0.0001599,2]
[420417204,1776089441446,-151.0,0.0001599,2]
[420417206,1776089441462,-151.0,0.0001599,2]
[420417208,1776089441472,-500.0,0.0001599,2]
[420417210,1776089441482,-151.0,0.0001599,2]
[420417212,1776089441493,-151.0,0.0001599,2]
[420417214,1776089441509,-151.0,0.0001599,2]
[420417216,1776089441531,-500.0,0.0001599,2]
[420417218,1776089441541,-151.0,0.0001599,2]
[420417220,1776089441550,-500.0,0.0001599,2]
[420417222,1776089441574,-151.0,0.0001599,2]
[420417224,1776089441600,-151.0,0.0001599,2]
[420417226,1776089441611,-500.0,0.0001599,2]
[420417228,1776089441632,-151.0,0.0001599,2]
[420417230,1776089441641,-500.0,0.0001599,2]
[420417232,1776089441652,-500.0,0.0001599,2]
[420417234,1776089441664,-151.0,0.0001599,2]
[420417236,1776089441683,-500.0,0.0001599,2]
[420417238,1776089441693,-151.0,0.0001599,2]
[420417240,1776089441703,-500.0,0.0001599,2]
[420417242,1776089441715,-500.0,0.0001599,2]
[420417243,1776089441732,-500.0,0.0001599,2]
[420417245,1776089441745,-151.0,0.00015997,2]
[420417247,1776089441762,-500.0,0.00015999,2]
[420417250,1776089441782,-500.0,0.00015999,2]
[420417252,1776089441793,-500.0,0.00015999,2]
[420417254,1776089441802,-500.0,0.00015999,2]
[420417255,1776089441824,-500.0,0.00015999,2]
[420417256,1776089441847,-500.0,0.00015999,2]
[420417257,1776089441874,-500.0,0.00015999,2]
[420417258,1776089441886,-500.0,0.00015999,2]
[420417259,1776089441906,-500.0,0.00015999,2]
[420417260,1776089441935,-500.0,0.00015999,2]
[420417261,1776089441947,-500.0,0.00015999,2]
[420417262,1776089441964,-500.0,0.00015999,2]
[420417264,1776089441994,-500.0,0.00015999,2]
[420417266,1776089442015,-500.0,0.00015999,2]
[420417267,1776089442030,-712885.15084795,0.00016,2]
[420417294,1776089442547,-0.36938378,0.000159,2]
[420417462,1776089445218,-162.26061622,0.000159,2]
[420417464,1776089445229,-1622.31053743,0.00016,2]
[420417466,1776089445245,-782.59750722,0.00016,2]
[420417469,1776089445286,-322.94797957,0.00016,2]
[420417471,1776089445305,-114586.8,0.00016,2]
[420417534,1776089446409,-6053.91820964,0.00016,2]
[420417536,1776089446421,-95042.89434421,0.00016,2]
[420417610,1776089447932,-719189.77742902,0.00016,2]
[420417612,1776089447942,-2615.90987453,0.00016003,2]
[420417614,1776089447959,-36337.6373812,0.00016037,2]
[420417616,1776089447970,-500.0,0.00016096,2]
[420417618,1776089447981,-153.674643,0.00016097,2]
[420417620,1776089448009,-2615.90987453,0.00016105,2]
[420417622,1776089448020,-267.49504583,0.0001615,2]
[420417624,1776089448051,-2835.3,0.00016197,2]
[420417626,1776089448089,-2835.3,0.00016197,2]
[420417628,1776089448099,-281.38840685,0.00016197,2]
[420417630,1776089448143,-2615.90987453,0.00016207,2]
[420417633,1776089448156,-1106.01580881,0.00016222,2]
[420417635,1776089448179,-500.0,0.00016273,2]
[420417636,1776089448203,-2438.4,0.00016289,2]
[420417638,1776089448213,-2615.90987453,0.00016308,2]
[420417640,1776089448223,-2615.90987453,0.0001641,2]
[420417642,1776089448256,-9463.21,0.00016435,5]
[420417644,1776089448266,-150.99,0.00016435,2]
[420417646,1776089448276,-267.49504583,0.000165,2]
[420417648,1776089448297,-2615.90987453,0.00016512,2]
[420417650,1776089448328,-10137.0,0.00016521,2]
[420417652,1776089448337,-4020.0,0.00016521,2]
[420417654,1776089448358,-313.67,0.00016521,2]
[420417656,1776089448375,-974.79,0.00016521,2]
[420417658,1776089448386,-14120.55,0.00016521,2]
[420417660,1776089448406,-1000.0,0.00016521,2]
[420417663,1776089448418,-1000.0,0.00016521,2]
[420417665,1776089448430,-160.20305427,0.00016521,2]
[420417666,1776089448439,-1000.0,0.00016521,2]
[420417668,1776089448472,-500.0,0.00016521,2]
[420417670,1776089448484,-500.0,0.00016521,2]
[420417672,1776089448496,-500.0,0.00016534,2]
[420417674,1776089448529,-500.0,0.00016534,2]
[420417676,1776089448547,-500.0,0.00016534,2]
[420417678,1776089448562,-500.0,0.00016534,2]
[420417680,1776089448582,-500.0,0.00016534,2]
[420417682,1776089448614,-500.0,0.00016534,2]
[420417683,1776089448630,-500.0,0.00016534,2]
[420417686,1776089448641,-500.0,0.00016534,2]
[420417688,1776089448658,-500.0,0.00016534,2]
[420417690,1776089448685,-500.0,0.00016534,2]
[420417692,1776089448696,-500.0,0.00016534,2]
[420417694,1776089448707,-500.0,0.00016534,2]
[420417696,1776089448726,-500.0,0.00016534,2]
[420417698,1776089448738,-500.0,0.00016534,2]
[420417699,1776089448751,-500.0,0.00016534,2]
[420417701,1776089448769,-500.0,0.00016534,2]
[420417703,1776089448784,-500.0,0.00016534,2]
[420417705,1776089448813,-500.0,0.00016534,2]
[420417707,1776089448822,-500.0,0.00016534,2]
[420417710,1776089448845,-500.0,0.00016534,2]
[420417711,1776089448862,-500.0,0.00016534,2]
[420417713,1776089448880,-500.0,0.00016534,2]
[420417715,1776089448890,-500.0,0.00016534,2]
[420417717,1776089448906,-500.0,0.00016534,2]
[420417719,1776089448922,-500.0,0.00016534,2]
[420417721,1776089448933,-500.0,0.00016534,2]
[420417723,1776089448963,-612.52,0.00016534,2]
[420417725,1776089448973,-500.0,0.00016534,2]
[420417727,1776089448982,-500.0,0.00016534,2]
[420417730,1776089449002,-500.0,0.00016534,2]
[420417732,1776089449018,-500.0,0.00016534,2]
[420417734,1776089449029,-500.0,0.00016534,2]
[420417736,1776089449039,-500.0,0.00016534,2]
[420417738,1776089449056,-500.0,0.00016534,2]
[420417740,1776089449066,-500.0,0.00016534,2]
[420417742,1776089449075,-418.43442844,0.00016534,2]
[420417743,1776089449085,-852.62,0.00016534,2]
[420417745,1776089449102,-852.62,0.00016534,2]
[420417747,1776089449111,-852.62,0.00016534,2]
[420417749,1776089449121,-852.62,0.00016534,2]
[420417751,1776089449139,-852.62,0.00016534,2]
[420417753,1776089449150,-852.62,0.00016534,2]
[420417755,1776089449160,-852.62,0.00016534,2]
[420417757,1776089449170,-500.0,0.00016534,2]
[420417759,1776089449197,-500.0,0.00016534,2]
[420417761,1776089449207,-500.0,0.00016534,2]
[420417763,1776089449232,-500.0,0.00016534,2]
[420417765,1776089449251,-373.21252123,0.00016534,2]
[420417767,1776089449263,-500.0,0.00016534,2]
[420417770,1776089449289,-502.68588342,0.00016534,2]
[420417771,1776089449316,-500.0,0.00016534,2]
[420417774,1776089449327,-500.0,0.00016534,2]
[420417776,1776089449343,-500.0,0.00016534,2]
[420417778,1776089449362,-500.0,0.00016534,2]
[420417780,1776089449371,-474.95,0.00016534,2]
[420417781,1776089449383,-500.0,0.00016534,2]
[420417783,1776089449404,-215.27268675,0.00016534,2]
[420417785,1776089449415,-500.0,0.00016534,2]
[420417788,1776089449429,-500.0,0.00016534,2]
[420417790,1776089449451,-500.0,0.00016534,2]
[420417792,1776089449461,-500.0,0.00016534,2]
[420417794,1776089449479,-500.0,0.00016534,2]
[420417796,1776089449494,-500.0,0.00016534,2]
[420417798,1776089449504,-634.77288001,0.00016534,2]
[420417800,1776089449522,-500.0,0.00016534,2]
[420417801,1776089449539,-500.0,0.00016534,2]
[420417804,1776089449569,-518.76726066,0.00016534,2]
[420417805,1776089449579,-500.0,0.00016534,2]
[420417807,1776089449589,-500.0,0.00016534,2]
[420417809,1776089449617,-500.0,0.00016534,2]
[420417811,1776089449629,-500.0,0.00016534,2]
[420417814,1776089449647,-500.0,0.00016534,2]
[420417817,1776089449670,-500.0,0.00016534,2]
[420417820,1776089449682,-500.0,0.00016534,2]
[420417822,1776089449699,-500.0,0.00016534,2]
[420417824,1776089449720,-500.0,0.00016534,2]
[420417825,1776089449733,-500.0,0.00016534,2]
[420417828,1776089449755,-500.0,0.00016534,2]
[420417829,1776089449771,-500.0,0.00016534,2]
[420417832,1776089449789,-500.0,0.00016534,2]
[420417834,1776089449819,-500.0,0.00016534,2]
[420417836,1776089449829,-206.07434689,0.00016534,2]
[420417838,1776089449842,-500.0,0.00016534,2]
[420417840,1776089449865,-500.0,0.00016534,2]
[420417842,1776089449875,-500.0,0.00016534,2]
[420417844,1776089449888,-500.0,0.00016534,2]
[420417846,1776089449912,-500.0,0.00016534,2]
[420417848,1776089449922,-500.0,0.00016534,2]
[420417850,1776089449940,-500.0,0.00016534,2]
[420417852,1776089449956,-500.0,0.00016535,2]
[420417853,1776089449967,-500.0,0.00016535,2]
[420417856,1776089449992,-500.0,0.00016535,2]
[420417857,1776089450002,-768.1402102,0.00016535,30]
[420417859,1776089450015,-977663.41835919,0.00016535,2]
[420417921,1776089450919,-6079.94658195,0.000159,2]
[420417924,1776089450935,-7141.7,0.000159,2]
[420417941,1776089451186,946.91007036,0.000158,2]
[420417944,1776089451235,5000.01,0.000158,2]
[420417947,1776089451290,5000.01,0.000158,2]
[420418610,1776089473335,500.0,0.0003013,120]
[420418611,1776089481489,313.42,0.00030137,120]
[420418612,1776089504474,-296.328122,0.00015543,2]
[420418613,1776089506384,-592.656244,0.00015543,2]
[420418614,1776089508937,-1185.312488,0.00015543,2]
[420418615,1776089512029,-2370.624976,0.00015543,2]
[420418616,1776089524544,500.0,0.00030137,120]
[420418617,1776089529384,3367.83,0.00015146,2]
[420418618,1776089535253,2273.4,0.00030082,120]
[420418619,1776089535757,500.0,0.00030137,120]
[420418620,1776089544780,3599.999999,0.00024384,120]
[420418621,1776089545880,500.0,0.00030137,120]
[420418622,1776089548025,29243.78827227,0.0003013,120]
[420418623,1776089558499,500.0,0.00030137,120]
[420418624,1776089569812,500.0,0.00030137,120]
[420418625,1776089570455,1888.6,0.00030082,120]
[420418626,1776089576341,500.0,0.00030137,120]
[420418627,1776089579081,258.760048,0.00015387,2]
[420418628,1776089583829,500.0,0.00030137,120]
[420418629,1776089591287,500.0,0.00030137,120]
[420418630,1776089599591,500.0,0.00030137,120]
[420418631,1776089606154,500.0,0.00030137,120]
[420418632,1776089613628,500.0,0.00030136,120]
[420418633,1776089615092,500.0,0.00030137,120]
[420418634,1776089624017,500.0,0.00030137,120]
[420418635,1776089633958,500.0,0.00030137,120]
[420418636,1776089646895,512.7,0.00030137,120]
[420418637,1776089670729,500.0,0.00030137,120]
[420418638,1776089676358,1707.52,0.00030137,120]
[420418639,1776089678729,500.0,0.00030137,120]
[420418640,1776089680557,1444.0,0.00026137,120]
[420418641,1776089693091,500.0,0.00030137,120]
[420418642,1776089706787,500.0,0.00030137,120]
[420418643,1776089716637,500.0,0.00030137,120]
[420418644,1776089735326,1000.0,0.00027397,120]
[420418645,1776089735585,1000.0,0.00030137,120]
[420418646,1776089742023,1507.26,0.00030136,120]
[420418647,1776089744686,171.33331094,0.00015465,30]
[420418648,1776089745442,171.33331094,0.00015465,30]
[420418649,1776089746451,171.33331094,0.0001554,30]
[420418650,1776089747107,171.33331094,0.00015622,30]
[420418651,1776089747222,204.8,0.00022711,120]
[420418652,1776089747575,409.6,0.00025145,120]
[420418653,1776089747916,614.4,0.00027578,120]
[420418654,1776089748681,819.2,0.00030011,120]
[420418655,1776089752176,2000.0,0.00030136,120]
[420418656,1776089754367,193.6249983,0.00015465,30]
[420418657,1776089760690,2000.0,0.00030136,120]
[420418659,1776089770680,2000.0,0.00030136,120]
[420418660,1776089772290,150.0,0.00028767,120]
[420418661,1776089772409,263.20472557,0.00028767,120]
[420418662,1776089776826,3000.0,0.0003,120]
[420418663,1776089779412,2000.0,0.00030136,120]
[420418664,1776089779519,390.0,0.00030136,120]
[420418665,1776089788071,2000.0,0.00030136,120]
[420418666,1776089789650,2000.0,0.00028,120]
[420418667,1776089800114,2000.0,0.00030136,120]
[420418668,1776089804495,250.0,0.00013,2]
[420418669,1776089805401,300.0,0.00015,2]
[420418670,1776089808232,2000.0,0.00030136,120]
[420418676,1776089828643,3000.0,0.0003,120]
[420418677,1776089829863,150.0,0.00015388,2]
[420418678,1776089837917,500.0,0.0003013,120]
[420418679,1776089841371,193.63,0.000227,120]
[420418680,1776089841667,387.26,0.00025132,120]
[420418681,1776089842049,580.89,0.00027564,120]
[420418682,1776089842815,774.52,0.00029996,120]
[420418683,1776089871649,4041.249952,0.00015062,2]
[420418684,1776089884902,2000.0,0.00014914,2]
[420418685,1776089890814,150.0,0.00014986,2]
[420418686,1776089910808,1996.0,0.0003,120]
[420418687,1776089921495,3000.0,0.0003,120]
[420418688,1776089925623,183.07,0.00022838,120]
[420418689,1776089926007,366.14,0.00025285,120]
[420418690,1776089926382,549.2,0.00027732,120]
[420418691,1776089945182,3000.0,0.0003,120]
[420418692,1776089970164,2000.0,0.0003,120]
[420418693,1776089995589,500.0,0.0003,120]
[420418694,1776090010970,177.08,0.00022834,120]
[420418695,1776090011346,354.15,0.0002528,120]
[420418696,1776090011753,531.23,0.00027727,120]
[420418697,1776090029303,1206.90043,0.00015051,2]
[420418698,1776090029828,1206.90043,0.00015051,2]
[420418699,1776090030037,1206.90043,0.00015051,2]
[420418700,1776090030180,1206.90043,0.00015051,2]
[420418701,1776090030342,1206.90045,0.00015051,2]
[420418702,1776090030744,187.51525584,0.00014961,2]
[420418703,1776090045615,307.25608408,0.00015061,30]
[420418704,1776090046403,307.25608408,0.00015062,30]
[420418705,1776090047331,307.25608408,0.00015062,30]
[420418706,1776090048073,307.25608408,0.0001526,30]
[420418707,1776090050490,307.25608408,0.00026368,120]
[420418708,1776090052625,170.4,0.00011889,2]
[420418709,1776090052699,170.4,0.00013871,2]
[420418710,1776090067307,1287.19257416,8.5e-05,2]
[420418711,1776090067338,10000.01,8.5e-05,2]
[420418712,1776090067374,10000.01,8.5e-05,2]
[420418713,1776090067409,10000.01,8.5e-05,2]
[420418714,1776090067459,76586.79203433,8.5e-05,2]
[420418715,1776090095739,171.28,0.00022407,120]
[420418716,1776090096139,342.56,0.00024808,120]
[420418717,1776090096469,513.84,0.00027209,120]
[420418718,1776090098740,685.13,0.0002961,120]
[420418719,1776090103301,-200.0,0.00014822,2]
[420418720,1776090103391,-1360.01,0.00014839,2]
[420418721,1776090111834,-1879.99,0.00014839,2]
[420418722,1776090111880,-300.0,0.0001506,2]
[420418723,1776090111923,-260.0,0.0001506,2]
[420418724,1776090115421,-203.963,0.00015061,2]
[420418725,1776090115467,-1200.0,0.00015061,2]
[420418726,1776090115538,-992.084,0.00015061,2]
[420418727,1776090163471,2005.2,0.00030082,120]
[420418728,1776090164221,2005.2,0.00030082,120]
[420418729,1776090164355,467.0,0.000301,120]
[420418730,1776090179801,161.94,0.00022438,120]
[420418731,1776090180134,323.88,0.00024842,120]
[420418732,1776090180498,485.82,0.00027246,120]
[420418733,1776090180957,647.76,0.0002965,120]
[420418734,1776090198729,2334.88,0.00030137,120]
[420418735,1776090202120,2324.7,0.00030082,120]
[420418736,1776090208653,500.0,0.0003013,120]
[420418737,1776090264843,153.11,0.00022465,120]
[420418738,1776090265215,306.21,0.00024871,120]
[420418739,1776090265640,459.32,0.00027278,120]
[420418740,1776090265982,612.42,0.00029685,120]
[420418741,1776090307532,778.0,0.00029951,120]
[420418742,1776090345622,1518.48802897,0.00027397,120]
[420418743,1776090384112,150.0,0.00022634,120]
[420418744,1776090384460,289.51,0.0002506,120]
[420418745,1776090384821,434.26,0.00027485,120]
[420418746,1776090385160,579.02,0.0002991,120]
[420418747,1776090468938,150.0,0.00022638,120]
[420418748,1776090469022,1444.0,0.00026137,120]
[420418749,1776090469278,273.66,0.00025063,120]
[420418750,1776090469649,410.49,0.00027489,120]
[420418751,1776090470019,547.32,0.00029914,120]
[420418752,1776090473851,3230.28955884,0.00030136,120]
[420418753,1776090537185,-1455.011119,0.00014458,2]
[420418754,1776090537219,-249.44,0.00014634,2]
[420418755,1776090537247,-150.0,0.00014678,2]
[420418756,1776090537274,-250.0,0.00014715,2]
[420418757,1776090537306,-1600.0,0.00014756,2]
[420418758,1776090537341,-185.65,0.00014826,2]
[420418759,1776090537372,-292.0435,0.00014961,2]
[420418760,1776090545083,-247.1162272,0.00015016,2]
[420418761,1776090545117,-150.0,0.00015016,2]
[420418762,1776090545155,-223.11435398,0.00015016,2]
[420418763,1776090545191,-300.0,0.0001506,2]
[420418764,1776090545223,-1200.0,0.00015061,2]
[420418765,1776090545255,-1200.0,0.00015061,2]
[420418766,1776090545289,-300.0,0.00015061,2]
[420418767,1776090545321,-2197.62479982,0.00015062,2]
[420418768,1776090552500,150.0,0.0002284,120]
[420418769,1776090552937,258.59,0.00025287,120]
[420418770,1776090553522,387.89,0.00027734,120]
[420418771,1776090557389,500.0,0.0003013,120]
[420418772,1776090557517,-8148.05,0.00014735,2]
[420418773,1776090557601,-250.0,0.00015038,2]
[420418774,1776090557643,-1601.95,0.00015062,2]
[420418775,1776090561040,-10000.0,0.00015062,2]
[420418776,1776090572089,-1975.98524818,0.00015062,2]
[420418777,1776090572113,-1000.0,0.000152,2]
[420418778,1776090572137,-1000.0,0.000152,3]
[420418779,1776090572160,-151.0,0.00015318,2]
[420418780,1776090572187,-169.22,0.00015318,2]
[420418781,1776090572212,-4490.85875182,0.00015373,2]
[420418782,1776090598836,150.0,0.0001,2]
[420418783,1776090613499,467.0,0.00029504,120]
[420418784,1776090621483,282795.5083861,0.000299,120]
[420418795,1776090633540,-599.51157232,0.00014716,2]
[420418796,1776090633556,-533.63842768,0.00014716,2]
[420418797,1776090633566,-200.0,0.00014751,2]
[420418798,1776090633586,-250.0,0.00015062,2]
[420418799,1776090633597,-1200.0,0.00015372,2]
[420418800,1776090633606,-300.0,0.00015372,2]
[420418801,1776090633629,-300.0,0.00015372,2]
[420418802,1776090633638,-300.0,0.00015372,2]
[420418803,1776090633647,-192265.93190643,0.00015373,2]
[420418804,1776090633678,-1085.56,0.00015373,2]
[420418805,1776090633696,-4417.06861939,0.00015373,2]
[420418806,1776090633770,-2908.62641723,0.00015373,2]
[420418807,1776090637867,-284.08752749,0.00015326,2]
[420418808,1776090637881,-743.22635477,0.00015326,2]
[420418809,1776090637927,-968.12794408,0.00015326,2]
[420418906,1776090640488,-693.27386168,0.00015326,2]
[420418919,1776090642739,-162.1213,0.00015326,2]
[420418923,1776090643192,-4734.18614508,0.00015326,2]
[420418924,1776090643214,-42487.34903539,0.00015326,2]
[420418925,1776090643226,-1029.94730516,0.00015355,2]
[420418926,1776090643241,-500.0,0.00015372,2]
[420418927,1776090643262,-500.0,0.00015372,2]
[420418928,1776090643275,-500.0,0.00015372,2]
[420418930,1776090643286,-500.0,0.00015372,2]
[420418932,1776090643304,-500.0,0.00015372,2]
[420418933,1776090643316,-500.0,0.00015372,2]
[420418934,1776090643328,-500.0,0.00015372,2]
[420418935,1776090643339,-500.0,0.00015372,2]
[420418936,1776090643362,-500.0,0.00015372,2]
[420418938,1776090643374,-500.0,0.00015372,2]
[420418940,1776090643393,-391.57900987,0.00015372,2]
[420418942,1776090643415,-500.0,0.00015372,2]
[420418944,1776090643429,-415.00428127,0.00015372,2]
[420418945,1776090643463,-235.06792394,0.00015372,2]
[420418946,1776090643473,-215.75754779,0.00015372,2]
[420418947,1776090643483,-500.0,0.00015372,2]
[420418948,1776090643499,-500.0,0.00015372,2]
[420418949,1776090643517,-381941.10740513,0.00015373,2]
[420418950,1776090643528,-553.21171224,0.00015417,2]
[420418952,1776090643547,-150.0,0.00015426,2]
[420418954,1776090643561,-369.2402651,0.00015426,2]
[420418956,1776090643575,-500.0,0.00015426,2]
[420418958,1776090643603,-166.69712305,0.00015426,2]
[420418959,1776090643615,-500.0,0.00015426,2]
[420418960,1776090643625,-500.0,0.00015426,2]
[420418961,1776090643656,-560.48021266,0.00015426,2]
[420418962,1776090643666,-500.0,0.00015426,2]
[420418963,1776090643685,-500.0,0.00015426,2]
[420418964,1776090643704,-500.0,0.00015426,2]
[420418965,1776090643713,-500.0,0.00015426,2]
[420418966,1776090643729,-500.0,0.00015426,2]
[420418967,1776090643748,-500.0,0.00015426,2]
[420418968,1776090643757,-160.47380211,0.00015426,2]
[420418969,1776090643772,-270381.21914056,0.00015427,2]
[420418982,1776090647007,-500.0,0.00015372,2]
[420418983,1776090647023,-500.0,0.00015372,2]
[420418984,1776090647035,-500.0,0.00015372,2]
[420418985,1776090647045,-215998.54482358,0.00015427,2]
[420418986,1776090647106,-5704.63243274,0.00015427,2]
[420418987,1776090647124,-165834.1797775,0.00015427,2]
[420418988,1776090647525,-683.24999999,0.00015427,2]
[420418989,1776090685604,505.99997,0.000135,2]
[420418990,1776090751541,-1852.42,0.00014642,2]
[420418991,1776090783002,506.0,0.000135,2]
[420418992,1776090788207,500.0,0.00014549,2]
[420418993,1776090918772,155.97,0.0001,2]
[420418994,1776090927108,133.2,0.00014501,2]
[420418995,1776090927143,2661.1,0.00014501,2]